bitfinex/quotes_ETHUSD_20241123
["timestamp","ask_amount","ask_price","bid_price","bid_amount"]
[1732339731564,0.037576,3327.2,3325.7,0.02711453]
[1732339731761,0.01,3326.8,3325.7,0.02711453]
[1732339731922,0.04758137,3326.8,3324.9,0.2988]
[1732339732329,0.04758137,3326.8,3325.7,0.02715385]
[1732339732759,0.04758137,3326.8,3324.9,0.2988]
[1732339733064,0.04758137,3326.8,3325.7,0.02714795]
[1732339733361,0.04758137,3326.8,3324.9,0.2988]
[1732339733775,0.05758137,3326.8,3325.7,0.02714795]
[1732339734061,0.01,3326.8,3324.9,0.2988]
[1732339734264,0.02,3326.8,3324.9,0.2988]
[1732339734515,0.03758217,3326.7,3324.9,0.2988]
[1732339735716,0.03758218,3326.6,3324.9,0.2988]
[1732339736474,0.05758218,3326.8,3325.4,0.2988]
[1732339736673,0.05758218,3326.8,3325.7,0.02723341]
[1732339737594,0.05758218,3326.8,3325.4,0.2988]
[1732339737775,0.03758218,3326.8,3325.7,0.02733127]
[1732339737972,0.01,3327.1,3325.7,0.02733127]
[1732339738191,0.04757781,3327.1,3325.7,0.02733127]
[1732339738818,0.20100084,3327.1,3325.7,0.02733127]
[1732339739810,0.56,3327.0,3325.7,0.32613127]
[1732339740009,0.7828,3326.8,3325.7,0.32613127]
[1732339740207,0.03758224,3326.7,3325.7,0.2988]
[1732339740534,0.04758222,3326.8,3325.8,0.02730063]
[1732339740902,0.04758222,3326.8,3325.6,0.3433867]
[1732339741297,0.04758222,3326.8,3325.8,0.2988]
[1732339741731,0.04758222,3326.8,3325.9,0.02728314]
[1732339741934,0.361662,3326.7,3325.9,0.02728314]
[1732339742107,0.361662,3326.7,3325.8,0.2988]
[1732339742313,0.361662,3326.7,3325.6,0.3433867]
[1732339742551,0.03758224,3326.6,3325.9,0.02727127]
[1732339742700,0.03758224,3326.6,3325.6,0.64784537]
[1732339742701,0.03758224,3326.6,3325.7,0.02731206]
[1732339742900,0.03758224,3326.6,3326.0,0.02725959]
[1732339743238,0.03758224,3326.6,3326.1,0.0272421]
[1732339743435,0.03758224,3326.6,3325.6,0.0445867]
[1732339743603,0.03758224,3326.6,3325.7,0.02730157]
[1732339744029,0.39924424,3326.7,3325.7,0.02730157]
[1732339744204,0.361662,3326.7,3325.7,0.02730157]
[1732339745910,0.03757909,3326.6,3325.6,0.0445867]
[1732339746241,0.03757909,3326.6,3325.7,0.02729576]
[1732339746457,0.361662,3326.7,3325.6,0.0445867]
[1732339746606,0.361662,3326.7,3325.7,0.02730157]
[1732339746806,0.361662,3326.7,3325.6,0.0445867]
[1732339747013,0.361662,3326.7,3325.7,0.02730157]
[1732339747929,0.361662,3326.7,3325.6,0.0445867]
[1732339748260,0.361662,3326.7,3325.6,3.0445867]
[1732339748413,0.361662,3326.7,3325.7,0.63053194]
[1732339748609,0.01,3327.8,3325.7,0.32607327]
[1732339748850,0.27889499,3327.7,3325.7,0.32607327]
[1732339749152,0.361662,3327.7,3326.2,0.2988]
[1732339749411,0.361662,3327.7,3326.4,0.2988]
[1732339749744,0.361662,3327.7,3326.5,0.02707884]
[1732339750323,0.361662,3327.7,3326.5,0.32587884]
[1732339751448,0.361662,3327.7,3326.5,0.02707884]
[1732339751755,0.361662,3327.7,3325.9,0.2988]
[1732339751935,0.361662,3327.7,3326.6,0.02701418]
[1732339752137,0.361662,3327.7,3325.9,0.69421948]
[1732339752659,0.361662,3327.7,3326.0,0.02709535]
[1732339753229,0.03756685,3327.6,3326.6,0.2988]
[1732339753431,0.03756685,3327.6,3326.7,0.02695529]
[1732339753629,0.037569,3327.6,3326.7,0.02695529]
[1732339753849,0.361662,3327.7,3326.8,0.2988]
[1732339754059,0.361662,3327.7,3326.9,0.02696156]
[1732339754425,0.361662,3327.7,3326.8,0.2988]
[1732339754732,0.361662,3327.7,3325.6,0.3433867]
[1732339754933,0.361662,3327.7,3325.6,0.73880618]
[1732339755137,0.361662,3327.7,3325.7,0.02716557]
[1732339755850,0.361662,3327.7,3325.8,0.2988]
[1732339756173,0.361662,3327.7,3325.9,0.02713059]
[1732339756666,0.03756905,3327.6,3326.6,0.2988]
[1732339756875,0.371662,3327.7,3326.7,0.02699595]
[1732339757043,0.371662,3327.7,3326.6,0.2988]
[1732339757880,0.371662,3327.7,3325.8,0.2988]
[1732339758034,0.371662,3327.7,3326.3,0.2988]
[1732339758368,0.371662,3327.7,3326.5,0.2988]
[1732339758751,0.371662,3327.7,3326.6,0.0269285]
[1732339758954,0.361662,3327.7,3326.5,0.2988]
[1732339759280,0.371662,3327.7,3326.6,0.0269285]
[1732339759484,0.371662,3327.7,3326.1,0.2988]
[1732339759765,0.371662,3327.7,3326.3,0.2988]
[1732339760271,0.371662,3327.7,3326.4,0.02697518]
[1732339760695,0.371662,3327.7,3325.8,0.2988]
[1732339760882,0.371662,3327.7,3326.3,0.2988]
[1732339761179,0.03756905,3327.6,3326.5,0.2988]
[1732339761470,1.35686905,3327.6,3326.6,0.02689868]
[1732339761774,0.17285311,3327.5,3326.6,0.02689868]
[1732339761951,0.03757299,3327.4,3326.6,0.02689868]
[1732339762265,0.03757299,3327.4,3326.3,0.2988]
[1732339762266,0.55,3327.3,3326.3,0.2988]
[1732339762632,0.55,3327.3,3326.4,0.02692421]
[1732339763140,0.56,3327.4,3326.4,0.32572421]
[1732339763677,0.56,3327.4,3326.5,0.02690673]
[1732339763839,0.59757582,3327.4,3326.5,0.02690673]
[1732339764038,0.59757582,3327.4,3326.5,0.32570673]
[1732339764336,0.56,3327.4,3326.5,0.2988]
[1732339764557,0.55,3327.4,3326.5,0.2988]
[1732339764761,0.7593,3327.6,3326.6,0.02688344]
[1732339764962,0.7593,3327.6,3326.5,0.2988]
[1732339765132,0.371662,3327.7,3326.0,0.2988]
[1732339765348,0.01,3327.4,3326.6,0.02688344]
[1732339765557,0.01,3327.4,3326.0,0.2988]
[1732339765885,0.01,3327.4,3326.1,0.02697086]
[1732339766180,0.371662,3327.7,3326.1,0.02697086]
[1732339766334,0.361662,3327.7,3326.3,0.2988]
[1732339766677,0.361662,3327.7,3326.5,0.2988]
[1732339766845,0.361662,3327.7,3326.6,0.02686529]
[1732339767432,0.361662,3327.7,3326.6,0.32566529]
[1732339767637,0.361662,3327.7,3326.6,0.72108477]
[1732339768261,0.361662,3327.7,3326.6,0.32566529]
[1732339768458,0.361662,3327.7,3326.6,0.02686529]
[1732339768658,0.361662,3327.7,3326.2,0.2988]
[1732339768867,0.361662,3327.7,3326.3,0.02699242]
[1732339769540,0.361662,3327.7,3326.6,0.2988]
[1732339769739,0.361662,3327.7,3326.8,0.2988]
[1732339770172,0.361662,3327.7,3326.9,0.02683932]
[1732339771079,0.361662,3327.7,3326.3,0.2988]
[1732339771270,0.361662,3327.7,3326.5,0.2988]
[1732339771472,0.361662,3327.7,3327.0,0.2988]
[1732339771779,0.361662,3327.7,3327.2,0.2988]
[1732339772143,0.361662,3327.7,3327.3,0.02673052]
[1732339772558,0.361662,3327.7,3327.0,0.2988]
[1732339772782,0.361662,3327.7,3327.4,0.02671065]
[1732339773090,0.361662,3327.7,3327.5,0.02669557]
[1732339773255,0.361662,3327.7,3327.2,0.2988]
[1732339773458,0.361662,3327.7,3327.3,0.02673052]
[1732339773851,0.7793,3328.4,3327.0,0.2988]
[1732339774051,0.395419,3328.3,3327.0,0.2988]
[1732339774643,0.395419,3328.3,3326.1,0.2988]
[1732339774848,0.395419,3328.3,3326.3,0.2988]
[1732339775169,0.395419,3328.3,3326.7,0.2988]
[1732339775376,0.395419,3328.3,3326.9,0.2988]
[1732339775763,0.395419,3328.3,3327.0,0.02678294]
[1732339776806,0.395419,3328.3,3326.4,0.2988]
[1732339776994,0.395419,3328.3,3327.1,0.02676547]
[1732339777163,0.395419,3328.3,3326.9,0.2988]
[1732339777363,0.395419,3328.3,3327.1,0.2988]
[1732339777790,0.395419,3328.3,3327.2,0.02674559]
[1732339778262,0.395419,3328.3,3326.4,0.2988]
[1732339778462,0.395419,3328.3,3326.5,0.02686794]
[1732339779617,0.395419,3328.3,3326.7,0.2988]
[1732339779767,0.395419,3328.3,3326.9,0.2988]
[1732339779966,0.395419,3328.3,3328.2,3.0]
[1732339780181,0.395419,3328.3,3327.0,0.02675225]
[1732339780405,0.395419,3328.3,3328.2,0.0265426]
[1732339780591,0.395419,3328.3,3326.9,0.2988]
[1732339780908,0.395419,3328.3,3326.4,0.2988]
[1732339781070,0.395419,3328.3,3327.0,0.02675464]
[1732339781268,0.395419,3328.3,3327.6,3.0]
[1732339781600,0.395419,3328.3,3327.7,0.32662993]
[1732339781776,0.395419,3328.3,3327.7,0.02662993]
[1732339782386,0.395419,3328.3,3326.4,0.2988]
[1732339782608,0.395419,3328.3,3326.5,0.2988]
[1732339782805,0.395419,3328.3,3326.5,0.32556449]
[1732339782989,0.395419,3328.3,3327.5,0.2988]
[1732339783371,0.395419,3328.3,3327.6,0.02657225]
[1732339784375,0.395419,3328.3,3326.5,0.2988]
[1732339784579,0.395419,3328.3,3326.5,0.69421948]
[1732339784767,0.395419,3328.3,3326.6,0.02673518]
[1732339784974,0.7784,3328.6,3326.7,0.2988]
[1732339785311,0.7784,3328.6,3326.8,0.02668166]
[1732339785522,0.01,3328.5,3326.8,0.02668166]
[1732339785668,0.04755655,3328.5,3326.8,0.02668166]
[1732339785869,0.03755655,3328.5,3326.8,0.02668166]
[1732339786094,0.04755655,3328.5,3326.9,0.2988]
[1732339786312,0.04755659,3328.5,3326.9,0.2988]
[1732339786486,0.04755659,3328.5,3327.2,0.2988]
[1732339786813,0.01,3328.5,3327.4,0.2988]
[1732339787677,0.01,3328.5,3326.7,0.2988]
[1732339787878,1.47262,3328.6,3326.7,0.69421948]
[1732339788093,0.01,3328.5,3326.8,0.0266911]
[1732339788290,1.47262,3328.6,3326.8,0.0266911]
[1732339789100,0.01,3328.5,3326.8,0.0266911]
[1732339789767,1.47262,3328.6,3326.8,0.0266911]
[1732339790019,1.47262,3328.6,3326.9,0.2988]
[1732339790305,1.47262,3328.6,3327.0,0.02665855]
[1732339790923,1.47262,3328.6,3327.4,0.2988]
[1732339791224,0.03755662,3328.5,3327.6,0.2988]
[1732339791591,0.03755662,3328.5,3327.7,0.02649956]
[1732339792015,0.03755662,3328.5,3326.5,0.2988]
[1732339792213,1.47262,3328.6,3326.7,0.2988]
[1732339792532,1.47262,3328.6,3327.3,0.2988]
[1732339793128,1.47262,3328.6,3326.7,0.39541948]
[1732339793129,1.47262,3328.6,3327.5,0.2988]
[1732339793629,1.47262,3328.6,3327.6,0.0265791]
[1732339794490,1.47262,3328.6,3327.3,0.2988]
[1732339794729,1.47262,3328.6,3327.4,0.02660252]
[1732339795116,1.47262,3328.6,3327.3,0.2988]
[1732339795315,1.47262,3328.6,3327.4,0.02660043]
[1732339795514,1.47262,3328.6,3327.0,0.2988]
[1732339795729,1.47262,3328.6,3327.1,0.02665286]
[1732339796592,1.47262,3328.6,3327.1,0.32545286]
[1732339797534,1.47262,3328.6,3327.1,0.02665286]
[1732339797989,1.47262,3328.6,3327.3,0.2988]
[1732339798197,1.47262,3328.6,3327.5,0.2988]
[1732339798492,1.47262,3328.6,3327.6,0.02656548]
[1732339798719,0.7536,3328.5,3327.5,0.2988]
[1732339798920,0.79115643,3328.5,3327.5,0.2988]
[1732339799120,0.79115643,3328.5,3327.6,0.32536548]
[1732339799728,0.79115643,3328.5,3327.6,0.2988]
[1732339799934,0.7536,3328.5,3327.6,0.2988]
[1732339800110,0.7911568,3328.4,3327.7,0.2988]
[1732339800291,0.7536,3328.4,3327.7,0.2988]
[1732339800695,0.7536,3328.4,3324.1,0.61081062]
[1732339800696,0.0375604,3328.3,3327.4,0.2988]
[1732339800918,0.7536,3328.2,3327.4,0.2988]
[1732339801130,0.7536,3328.0,3327.3,0.2988]
[1732339801298,0.7536,3328.0,3327.2,3.0]
[1732339801299,0.7536,3328.0,3327.5,0.2988]
[1732339802443,0.7536,3328.0,3327.3,0.2988]
[1732339802832,0.79116246,3327.9,3327.3,0.2988]
[1732339803512,0.79116246,3327.9,3327.0,0.2988]
[1732339803742,0.79116246,3327.9,3327.0,0.5988]
[1732339803914,0.79116246,3327.9,3327.0,0.2988]
[1732339804300,0.55,3327.8,3327.0,0.2988]
[1732339804547,0.7536,3327.6,3326.3,0.2988]
[1732339804745,0.55,3327.8,3326.3,0.2988]
[1732339804746,0.7536,3327.4,3326.3,0.2988]
[1732339805105,0.7536,3327.6,3326.3,0.2988]
[1732339805405,0.7536,3327.5,3326.3,0.2988]
[1732339805603,0.7536,3327.5,3325.9,0.2988]
[1732339805824,0.7536,3327.5,3326.4,0.2988]
[1732339806029,0.7536,3327.5,3326.6,0.2988]
[1732339807152,0.7536,3327.5,3326.1,0.2988]
[1732339807539,0.7536,3327.5,3326.6,0.2988]
[1732339807743,0.7536,3327.5,3326.8,0.2988]
[1732339808724,0.7536,3327.5,3326.0,0.39541948]
[1732339808725,0.7536,3327.5,3326.9,0.2988]
[1732339809630,0.7536,3327.5,3326.6,0.2988]
[1732339809980,0.7536,3327.5,3326.8,0.2988]
[1732339810857,0.7536,3327.5,3326.1,0.2988]
[1732339811059,0.7536,3327.5,3326.6,0.2988]
[1732339811258,0.7536,3327.5,3326.8,0.2988]
[1732339812272,0.7536,3327.5,3326.6,0.2988]
[1732339813140,0.7536,3327.4,3326.7,0.2988]
[1732339814252,0.7536,3327.4,3326.6,0.2988]
[1732339814452,0.7536,3327.4,3326.8,0.2988]
[1732339815455,0.7536,3327.4,3326.9,0.2988]
[1732339816433,0.7536,3327.4,3326.2,0.2988]
[1732339817281,0.01,3328.3,3326.4,0.2988]
[1732339817462,0.01,3328.3,3326.6,0.2988]
[1732339817463,0.7536,3328.2,3326.6,0.2988]
[1732339817775,0.7536,3328.2,3327.1,0.2988]
[1732339817979,0.7536,3328.2,3327.3,0.2988]
[1732339819042,0.7536,3328.2,3326.7,0.2988]
[1732339820045,0.7536,3328.2,3327.1,0.2988]
[1732339820248,0.7536,3328.2,3327.3,0.2988]
[1732339821395,0.7536,3328.2,3327.1,0.2988]
[1732339822544,0.7536,3328.2,3326.1,0.2988]
[1732339822776,0.7536,3328.2,3326.3,0.2988]
[1732339822975,0.7536,3328.2,3327.1,0.2988]
[1732339823189,0.7536,3328.2,3327.3,3.2988]
[1732339824649,0.7536,3328.2,3327.4,0.2988]
[1732339825568,0.7536,3328.2,3326.4,0.39541948]
[1732339825569,0.7536,3328.2,3326.5,0.2988]
[1732339825790,0.7536,3328.2,3326.7,0.2988]
[1732339825997,0.7586,3328.5,3327.2,0.2988]
[1732339826156,0.7586,3328.5,3327.4,0.2988]
[1732339826357,0.7586,3328.5,3327.6,0.2988]
[1732339826560,0.69422,3328.6,3327.6,0.2988]
[1732339826804,0.7586,3329.4,3327.6,0.2988]
[1732339826989,0.7586,3329.4,3327.6,0.69421948]
[1732339827308,0.7586,3329.4,3327.8,0.2988]
[1732339827465,1.45282,3329.4,3327.8,0.2988]
[1732339827661,0.7586,3329.3,3328.2,3.0]
[1732339827867,0.7586,3329.3,3328.3,0.5988]
[1732339828384,0.7586,3329.3,3328.3,0.2988]
[1732339828982,0.69422,3329.4,3328.3,0.2988]
[1732339829400,0.0445867,3329.5,3328.3,0.2988]
[1732339829982,0.7586,3329.3,3327.8,0.2988]
[1732339830185,0.7586,3329.3,3328.6,3.0]
[1732339830912,0.7586,3329.3,3328.7,0.3]
[1732339831412,0.7586,3329.3,3328.0,0.2988]
[1732339831623,0.7586,3329.3,3328.6,3.0]
[1732339831974,0.7586,3329.3,3328.0,0.2988]
[1732339832289,0.7586,3329.3,3328.6,3.0]
[1732339832893,0.7586,3329.3,3328.0,0.2988]
[1732339833214,0.7586,3329.3,3328.7,0.2988]
[1732339833509,0.7586,3329.3,3328.9,0.2988]
[1732339833673,0.588072,3329.4,3328.9,0.2988]
[1732339833878,0.8031867,3329.5,3327.9,0.39541948]
[1732339834120,0.39542,3329.4,3327.9,0.39541948]
[1732339834575,0.39542,3329.4,3328.0,0.2988]
[1732339834773,0.39542,3329.4,3327.9,0.39541948]
[1732339834774,0.39542,3329.4,3328.7,0.2988]
[1732339834973,0.39542,3329.4,3327.9,0.39541948]
[1732339834974,0.39542,3329.4,3328.9,0.2988]
[1732339836226,0.39542,3329.4,3328.8,3.0]
[1732339836425,0.7586,3329.3,3328.4,0.2988]
[1732339836736,0.7586,3329.3,3328.8,3.0]
[1732339837099,0.7586,3329.3,3327.6,0.2988]
[1732339838000,0.7586,3329.3,3328.8,0.2988]
[1732339838234,0.7586,3329.3,3329.0,0.2988]
[1732339839234,0.7586,3329.3,3329.1,0.2988]
[1732339840095,0.7586,3329.3,3328.8,0.2988]
[1732339840324,0.7586,3329.3,3329.0,0.2988]
[1732339841333,0.7586,3329.3,3327.8,0.2988]
[1732339841493,0.7586,3329.3,3328.0,0.2988]
[1732339841692,0.7586,3329.3,3328.0,0.69421948]
[1732339842028,0.7586,3329.3,3328.0,0.2988]
[1732339842636,0.7586,3329.3,3327.7,0.2988]
[1732339842794,0.7586,3329.3,3327.7,0.69421948]
[1732339847843,0.86304601,3329.2,3327.3,0.2988]
[1732339848421,0.8255,3329.2,3327.3,0.69421948]
[1732339848635,0.8255,3329.2,3327.5,0.2988]
[1732339850540,0.8255,3329.2,3328.5,0.2988]
[1732339850740,0.8255,3329.2,3328.7,0.2988]
[1732339851779,0.8255,3329.2,3328.8,0.2988]
[1732339852910,0.8255,3329.0,3328.1,0.2988]
[1732339853114,0.86305319,3328.9,3328.1,0.2988]
[1732339853714,0.8255,3328.9,3328.1,0.2988]
[1732339853951,0.8255,3328.9,3326.9,0.2988]
[1732339854111,0.8255,3328.9,3326.9,0.69421948]
[1732339854319,0.8255,3328.9,3326.9,0.2988]
[1732339854718,0.8255,3328.9,3327.1,0.2988]
[1732339855075,0.8255,3328.9,3327.9,0.2988]
[1732339856062,0.8255,3328.7,3327.9,0.2988]
[1732339857124,0.8255,3328.7,3328.0,0.2988]
[1732339857556,0.8255,3328.5,3328.0,0.2988]
[1732339858265,0.8255,3328.5,3327.9,0.2988]
[1732339858640,0.8185,3328.3,3327.9,0.2988]
[1732339859482,0.8185,3328.3,3327.7,0.2988]
[1732339859932,0.8560582,3328.2,3327.7,0.2988]
[1732339860332,0.8560582,3328.2,3327.8,0.2988]
[1732339860584,0.56,3328.1,3327.8,0.2988]
[1732339860785,0.55,3327.9,3327.8,0.2988]
[1732339860936,0.55,3327.9,3326.4,0.2988]
[1732339860937,0.8185,3327.8,3326.4,0.2988]
[1732339861278,0.8560659,3327.8,3326.4,0.69421948]
[1732339861791,0.8285,3327.7,3326.4,0.69421948]
[1732339861934,1.40606888,3327.6,3326.3,0.00691367]
[1732339862274,0.8185,3327.5,3326.3,0.00691367]
[1732339862474,0.8185,3327.3,3326.3,0.00691367]
[1732339863641,0.85607015,3327.2,3326.3,0.00691367]
[1732339864337,0.85607015,3327.2,3326.5,3.0]
[1732339864536,0.85607015,3327.2,3326.5,0.3]
[1732339864737,0.8185,3327.2,3326.0,0.2988]
[1732339865174,0.8185,3327.2,3326.5,3.0]
[1732339866102,0.8185,3327.2,3326.0,0.2988]
[1732339867051,0.8185,3327.2,3326.5,3.0]
[1732339867252,0.8185,3327.2,3326.6,0.3]
[1732339867692,0.8185,3327.2,3326.5,3.0]
[1732339867893,0.8185,3327.0,3326.5,3.0]
[1732339868065,0.01,3327.2,3325.8,0.2988]
[1732339868066,0.8185,3326.8,3325.8,0.2988]
[1732339868250,0.8185,3326.8,3325.4,0.69421948]
[1732339868459,0.8185,3326.6,3325.4,0.39541948]
[1732339868891,0.03757787,3326.5,3325.4,0.39541948]
[1732339869100,0.8185,3326.4,3325.4,0.39541948]
[1732339870306,0.8185,3326.4,3325.6,3.0445867]
[1732339870602,0.8185,3326.4,3325.6,0.0445867]
[1732339870772,1.4160811,3326.3,3325.6,0.0445867]
[1732339870979,0.8185,3326.0,3325.6,0.0445867]
[1732339872162,0.85608757,3325.9,3325.6,0.0445867]
[1732339872597,0.8185,3325.9,3325.6,0.0445867]
[1732339872798,0.8185,3326.7,3325.6,0.0445867]
[1732339875408,0.03757794,3326.6,3325.6,0.0445867]
[1732339875701,0.8185,3326.5,3325.6,0.0445867]
[1732339877784,0.8185,3326.5,3325.7,0.2988]
[1732339877979,0.8185,3326.5,3325.6,3.0445867]
[1732339877980,0.8185,3326.5,3325.9,0.2988]
[1732339880919,0.8185,3326.5,3325.9,3.2988]
[1732339881136,0.8185,3326.5,3325.6,0.0445867]
[1732339881432,0.8185,3326.5,3325.7,0.2988]
[1732339882526,0.8483802,3326.4,3325.7,0.2988]
[1732339882731,0.01,3326.1,3325.6,0.0445867]
[1732339883036,0.8008,3326.0,3325.6,0.0445867]
[1732339883203,0.83838789,3325.9,3325.6,0.0445867]
[1732339883402,0.84838789,3325.9,3325.6,0.0445867]
[1732339883603,0.01,3325.8,3325.6,0.0445867]
[1732339883857,0.8108,3325.7,3325.6,0.0445867]
[1732339884003,0.59759278,3325.7,3325.6,0.0445867]
[1732339884201,1.3608,3325.7,3325.6,0.0445867]
[1732339884613,1.3608,3325.7,3324.6,0.0445867]
[1732339884614,0.01,3325.3,3324.6,0.0445867]
[1732339884810,0.8008,3325.2,3324.6,0.0445867]
[1732339885044,0.8008,3325.2,3324.6,0.03057738]
[1732339886115,0.8008,3325.0,3324.6,0.03057738]
[1732339886321,0.8008,3324.8,3324.6,0.03057738]
[1732339886636,0.8483995,3324.7,3324.6,0.03057738]
[1732339887443,0.8483995,3324.7,3323.8,0.00691367]
[1732339887444,0.01,3324.1,3323.8,0.00691367]
[1732339887600,1.3608,3323.9,3323.8,0.00691367]
[1732339887800,1.3708,3323.9,3323.8,0.00691367]
[1732339888739,1.60898837,3323.9,3323.8,0.00691367]
[1732339889323,1.57137423,3323.9,3323.8,0.00691367]
[1732339890005,1.57137423,3323.9,3323.6,0.0445867]
[1732339890006,0.02,3323.7,3323.6,0.0445867]
[1732339890206,0.85841777,3323.7,3323.6,0.0445867]
[1732339890440,1.56931697,3323.7,3323.6,0.0445867]
[1732339890950,1.56931697,3323.7,3319.6,0.0445867]
[1732339890951,1.3608,3322.7,3321.3,0.4254]
[1732339891114,1.3508,3322.7,3321.3,0.4254]
[1732339891319,1.3608,3322.7,3321.3,0.4254]
[1732339891519,1.3608,3322.7,3321.3,0.73197613]
[1732339891739,1.3508,3322.7,3321.3,0.73197613]
[1732339892149,0.8008,3322.7,3321.3,0.73197613]
[1732339892503,0.8008,3322.7,3322.0,0.44186639]
[1732339892908,0.8008,3322.7,3322.1,3.0]
[1732339893134,0.8008,3322.7,3322.0,0.44186639]
[1732339893323,0.8008,3323.1,3322.0,0.44186639]
[1732339893533,0.8008,3323.1,3322.1,3.0]
[1732339893707,0.8008,3323.1,3322.0,0.44186639]
[1732339893905,0.8108,3323.1,3322.1,3.0]
[1732339894155,0.8008,3323.1,3322.0,0.44186639]
[1732339894509,0.8108,3323.1,3322.1,3.0]
[1732339894755,0.8008,3323.1,3322.1,3.0]
[1732339895346,0.8108,3323.1,3322.1,3.0]
[1732339895556,0.8008,3323.1,3322.1,3.0]
[1732339896139,0.8008,3323.1,3322.0,0.44186639]
[1732339896767,0.03761844,3323.0,3322.0,0.44186639]
[1732339896928,0.8108,3323.1,3322.0,0.44186639]
[1732339897629,0.8008,3323.4,3322.0,0.44186639]
[1732339897967,0.8008,3323.4,3322.7,0.4254]
[1732339898467,0.03761374,3323.3,3322.2,0.4254]
[1732339899159,0.8108,3323.4,3322.5,3.0]
[1732339899461,0.8108,3323.4,3322.6,0.34904537]
[1732339900668,0.8108,3323.4,3322.6,0.0445867]
[1732339900870,0.8008,3323.4,3322.6,0.0445867]
[1732339901173,0.01,3323.2,3322.6,0.0445867]
[1732339901773,0.01,3323.1,3322.6,0.0445867]
[1732339902669,0.01,3323.2,3322.6,0.0445867]
[1732339902826,0.01,3323.1,3322.6,0.0445867]
[1732339903033,0.01,3322.7,3322.6,0.0445867]
[1732339903352,0.81572556,3322.7,3322.6,0.0445867]
[1732339904493,0.81572556,3322.7,3322.6,0.05103128]
[1732339910502,0.7781,3322.7,3322.6,0.05103128]
[1732339911650,0.7681,3322.7,3322.6,0.05103128]
[1732339912085,0.01,3323.1,3322.7,0.00644458]
[1732339912989,0.7681,3323.3,3322.7,0.00644458]
[1732339913590,0.01,3323.5,3323.0,0.00644458]
[1732339913797,0.01,3323.8,3323.0,0.00644458]
[1732339914153,0.01,3323.7,3323.0,0.00644458]
[1732339914389,0.01,3323.6,3323.0,0.00644458]
[1732339914573,0.04761437,3323.6,3323.0,0.00644458]
[1732339916365,0.01,3323.2,3323.0,0.00644458]
[1732339916665,0.7781,3323.1,3323.0,0.00644458]
[1732339917991,0.01,3323.3,3323.0,0.00644458]
[1732339918203,0.01,3323.4,3323.0,0.00644458]
[1732339918385,0.01,3323.3,3323.0,0.00644458]
[1732339920115,0.01,3323.1,3323.0,0.00644458]
[1732339922922,0.01,3323.3,3323.0,0.00644458]
[1732339923231,0.01,3323.3,3323.1,0.00644458]
[1732339923585,0.02,3323.3,3323.1,0.00644458]
[1732339924400,0.8016,3323.2,3323.1,0.00644458]
[1732339924606,0.83922062,3323.2,3323.1,0.00644458]
[1732339925527,1.38922062,3323.2,3323.1,0.00644458]
[1732339925846,1.39702062,3323.2,3323.1,0.00644458]
[1732339927189,1.60614061,3323.2,3323.1,0.00644458]
[1732339927844,1.3794,3322.7,3322.6,0.01920501]
[1732339928133,1.3794,3322.7,3322.0,0.01646639]
[1732339928134,0.8194,3322.1,3322.0,0.01646639]
[1732339928730,0.8294,3322.1,3322.0,0.01646639]
[1732339929107,0.8294,3321.7,3320.5,0.2988]
[1732339929637,0.8294,3321.7,3321.6,0.0316713]
[1732339929932,1.3794,3321.7,3321.6,0.0316713]
[1732339930418,0.8194,3320.8,3320.7,0.0496498]
[1732339932143,0.01,3320.9,3320.7,0.0496498]
[1732339932346,0.01,3320.9,3320.7,0.4750498]
[1732339932510,0.01,3321.2,3320.7,0.4750498]
[1732339933043,0.01,3321.1,3320.7,0.4750498]
[1732339933405,0.01,3321.1,3320.7,0.0496498]
[1732339936336,0.01,3320.9,3320.7,0.0496498]
[1732339936549,0.04764487,3320.9,3320.7,0.0496498]
[1732339936745,0.01,3320.9,3320.7,0.0496498]
[1732339937971,0.01,3321.0,3320.7,0.0496498]
[1732339938126,0.01,3321.0,3320.7,0.4750498]
[1732339939183,0.01,3320.8,3320.7,0.0496498]
[1732339939969,0.02,3320.8,3320.7,0.0496498]
[1732339940619,0.05764881,3320.8,3320.7,0.0496498]
[1732339941026,0.60764881,3320.8,3320.7,0.0496498]
[1732339941437,1.41294881,3320.8,3320.7,0.0496498]
[1732339943376,0.05764881,3320.8,3320.7,0.0496498]
[1732339944069,0.02,3320.8,3320.7,0.0496498]
[1732339944583,0.05764929,3320.8,3320.7,0.0496498]
[1732339945583,0.88334929,3320.8,3320.7,0.0496498]
[1732339945939,1.43334929,3320.8,3320.7,0.0496498]
[1732339949176,0.60764929,3320.8,3320.7,0.0496498]
[1732339949389,0.02,3320.8,3320.7,0.0496498]
[1732339950060,0.8457,3320.8,3320.7,0.0496498]
[1732339950539,0.02,3320.8,3320.7,0.0496498]
[1732339953267,0.05764617,3320.8,3320.7,0.0496498]
[1732339953768,0.05764812,3320.8,3320.7,0.0496498]
[1732339954078,0.01,3320.2,3319.8,0.4254]
[1732339954479,0.01,3320.1,3319.8,0.4254]
[1732339955178,0.01,3320.1,3319.8,0.7242]
[1732339955486,0.55,3320.7,3319.7,0.005]
[1732339955487,0.02,3321.0,3319.9,0.7242]
[1732339955665,0.02,3320.7,3320.1,0.2988]
[1732339956186,0.01,3320.5,3320.1,0.2988]
[1732339956742,0.02,3320.5,3320.1,0.2988]
[1732339957639,0.01,3320.5,3320.1,0.2988]
[1732339957875,0.02,3320.8,3320.1,0.2988]
[1732339958071,0.01,3321.0,3319.7,0.005]
[1732339958246,0.01,3321.2,3320.2,0.4254]
[1732339958451,0.01,3321.2,3320.5,0.2988]
[1732339958654,0.01,3321.2,3320.7,0.2988]
[1732339959276,0.01,3321.0,3320.7,0.2988]
[1732339959652,0.02,3321.0,3320.7,0.2988]
[1732339960078,0.02,3321.0,3320.4,0.2988]
[1732339960710,0.03764422,3320.9,3320.4,0.2988]